bitfinex/quotes_SOLUSD_20251030
["timestamp","ask_amount","ask_price","bid_price","bid_amount"]
[1761792902560,4.9899023,198.28,198.22,0.66]
[1761792902885,4.9899023,198.28,198.23,3.31130581]
[1761792903083,4.9899023,198.28,198.24,3.31130581]
[1761792903257,4.9899023,198.28,198.22,0.66]
[1761792903459,4.9899023,198.28,198.23,3.31133737]
[1761792903656,4.9899023,198.28,198.24,3.31133737]
[1761792903896,4.9899023,198.28,198.22,0.66]
[1761792904185,4.9899023,198.28,198.23,3.311199]
[1761792904388,4.9899023,198.28,198.24,3.311199]
[1761792904563,4.8899023,198.27,198.22,0.66]
[1761792904762,4.8899023,198.27,198.23,3.31060837]
[1761792905093,4.8899023,198.27,198.24,3.31060837]
[1761792905389,4.8899023,198.27,198.22,0.66]
[1761792905592,4.8899023,198.27,198.23,3.30777836]
[1761792905890,4.8899023,198.27,198.24,3.30777836]
[1761792906057,4.8899023,198.27,198.23,0.66]
[1761792906257,4.8899023,198.27,198.24,3.3080915]
[1761792906451,4.8899023,198.27,198.23,0.66]
[1761792906657,4.8899023,198.27,198.24,3.30878106]
[1761792906888,4.8899023,198.27,198.23,0.66]
[1761792907090,4.8899023,198.27,198.24,3.30893803]
[1761792907272,4.8899023,198.27,198.23,0.66]
[1761792907514,4.8899023,198.27,198.24,3.30866965]
[1761792907688,4.8899023,198.27,198.23,0.66]
[1761792907866,4.8899023,198.27,198.24,3.30904249]
[1761792908067,0.1,198.28,198.23,0.66]
[1761792908294,4.8899023,198.27,198.24,3.30967291]
[1761792908588,4.8899023,198.27,198.23,0.66]
[1761792908799,4.8899023,198.27,198.24,3.30973932]
[1761792908978,4.8899023,198.27,198.25,3.31086473]
[1761792909168,4.8899023,198.27,198.23,0.66]
[1761792909370,4.8899023,198.27,198.24,3.31274913]
[1761792909566,4.8899023,198.27,198.25,3.31274913]
[1761792909768,4.8899023,198.27,198.23,0.66]
[1761792910071,0.1,198.28,198.24,3.31272732]
[1761792910387,0.1,198.28,198.25,3.31272732]
[1761792910595,4.8899023,198.27,198.26,3.31272732]
[1761792910963,4.8899023,198.27,198.23,0.66]
[1761792911169,4.8899023,198.26,198.24,3.31385709]
[1761792911386,4.8899023,198.26,198.23,0.66]
[1761792911387,4.8899023,198.26,198.25,3.31385709]
[1761792911591,4.8899023,198.27,198.25,3.31385709]
[1761792911885,4.8899023,198.27,198.23,0.66]
[1761792912090,4.8899023,198.27,198.24,3.31482923]
[1761792912283,4.8899023,198.27,198.25,3.31482923]
[1761792912501,4.8899023,198.27,198.26,3.31482923]
[1761792912788,4.8899023,198.27,198.24,3.31482923]
[1761792912992,4.8899023,198.27,198.25,3.31482923]
[1761792913187,4.9899023,198.28,198.26,3.31482923]
[1761792913401,4.9899023,198.28,198.23,0.66]
[1761792913602,4.9899023,198.28,198.24,3.31410846]
[1761792913895,4.8899023,198.26,198.25,3.31410846]
[1761792914063,4.8899023,198.26,198.21,0.66]
[1761792914266,4.8899023,198.26,198.22,3.31502385]
[1761792914582,4.8899023,198.26,198.23,3.31502385]
[1761792914785,4.8899023,198.26,198.24,3.31502385]
[1761792914974,4.8899023,198.26,198.25,3.31502385]
[1761792915177,4.8899023,198.26,198.22,3.31502385]
[1761792915384,4.8899023,198.26,198.23,3.31502385]
[1761792915587,5.14342783,198.28,198.24,3.31502385]
[1761792915768,4.8899023,198.25,198.21,0.66]
[1761792915968,4.8899023,198.25,198.22,3.31582478]
[1761792916207,4.8899023,198.27,198.23,3.31582478]
[1761792916373,4.8899023,198.27,198.24,3.31582478]
[1761792916567,4.8899023,198.27,198.25,3.31582478]
[1761792916886,4.8899023,198.27,198.24,0.66]
[1761792917066,4.8899023,198.27,198.25,3.31605397]
[1761792917267,4.8899023,198.27,198.26,3.31605397]
[1761792917692,4.8899023,198.27,198.24,0.66]
[1761792917873,4.8899023,198.26,198.24,0.66]
[1761792918581,4.8899023,198.26,198.25,3.31751883]
[1761792918781,4.8899023,198.27,198.25,3.31751883]
[1761792919094,4.8899023,198.27,198.24,0.66]
[1761792919298,4.8899023,198.27,198.25,3.31822397]
[1761792919595,4.8899023,198.27,198.24,0.66]
[1761792919772,4.8899023,198.27,198.25,3.31827576]
[1761792919973,4.8899023,198.27,198.24,0.66]
[1761792920192,4.8899023,198.27,198.25,3.31827661]
[1761792920496,4.8899023,198.27,198.26,3.31827661]
[1761792923396,1.95761474,198.27,198.26,3.31827661]
[1761792924989,1.95761474,198.27,198.2,5.04516207]
[1761792924990,1.95761474,198.27,198.22,0.68]
[1761792925175,1.95761474,198.25,198.23,3.32470168]
[1761792925378,1.95761474,198.25,198.24,3.32470168]
[1761792925997,1.95761474,198.25,198.24,4.00470168]
[1761792927207,1.95761474,198.26,198.24,4.00470168]
[1761792927383,1.95761474,198.26,198.25,3.32470168]
[1761792927576,0.1,198.28,198.25,3.32470168]
[1761792927784,1.95761474,198.26,198.23,0.68]
[1761792928004,1.95761474,198.26,198.24,3.32555964]
[1761792928189,1.95761474,198.26,198.25,3.32555964]
[1761792929092,0.1,198.28,198.25,3.32555964]
[1761792929299,0.1,198.28,198.26,3.32555964]
[1761792929608,0.1,198.28,198.27,3.32555964]
[1761792930304,0.1,198.28,198.27,4.00555964]
[1761792930501,2.05761474,198.28,198.27,3.32555964]
[1761792931085,0.1,198.28,198.27,3.32555964]
[1761792931289,2.05761474,198.28,198.27,3.32555964]
[1761792934400,2.45761474,198.28,198.2,4.82548061]
[1761792934599,2.45761474,198.28,198.21,3.33129633]
[1761792934600,1.95761474,198.23,198.21,3.33129633]
[1761792934796,1.95761474,198.24,198.22,3.33129633]
[1761792934996,1.95761474,198.24,198.23,3.33129633]
[1761792937008,2.35761474,198.24,198.23,3.33129633]
[1761792937198,7.00200537,198.24,198.23,3.33129633]
[1761792937398,7.40200537,198.24,198.19,0.68]
[1761792937712,1.95761474,198.21,198.2,3.330682]
[1761792938220,1.95761474,198.21,198.2,4.010682]
[1761792938398,1.95761474,198.21,198.2,3.330682]
[1761792941717,2.35761474,198.21,198.14,4.14548061]
[1761792941917,1.95761474,198.16,198.15,3.32967135]
[1761792942998,2.35761474,198.16,198.15,3.32967135]
[1761792943217,2.33234917,198.16,198.15,3.32967135]
[1761792943626,1.93234917,198.16,198.11,0.68]
[1761792943801,1.95761474,198.13,198.12,3.33029672]
[1761792944815,1.95761474,198.13,198.08,0.68]
[1761792945038,1.95761474,198.11,198.09,3.33139006]
[1761792945218,1.95761474,198.11,198.08,0.68]
[1761792945418,1.95761474,198.11,198.09,3.3286936]
[1761792945625,1.95761474,198.11,198.1,3.3286936]
[1761792945998,1.95761474,198.11,198.08,0.68]
[1761792946199,1.95761474,198.11,198.09,3.32876784]
[1761792946417,1.95761474,198.1,198.04,16.77074769]
[1761792946718,1.95761474,198.09,198.06,0.68]
[1761792946936,1.95761474,198.09,198.07,3.32786985]
[1761792947229,1.95761474,198.09,198.06,0.68]
[1761792947717,1.95761474,198.09,198.07,3.32495326]
[1761792947920,1.95761474,198.09,198.07,0.68]
[1761792948697,1.95761474,198.11,198.07,0.68]
[1761792949426,20.592,198.15,198.07,0.68]
[1761792949721,3.06393965,198.12,198.08,3.31902997]
[1761792949908,3.06393965,198.12,198.07,5.72869486]
[1761792950113,3.06393965,198.12,198.08,3.99924042]
[1761792950311,3.06393965,198.12,198.08,0.68]
[1761792950521,3.06393965,198.11,198.09,0.68]
[1761792950736,3.06393965,198.1,198.05,5.72899114]
[1761792951034,3.06393965,198.1,198.06,3.99862605]
[1761792951318,3.06393965,198.1,198.07,0.68]
[1761792951712,3.06393965,198.08,198.04,10.44366796]
[1761792951914,0.4,198.09,198.04,9.76366796]
[1761792951915,5.44839211,198.09,198.04,9.76366796]
[1761792952124,3.06393965,198.05,198.04,9.76366796]
[1761792954203,3.46393965,198.05,198.04,9.76366796]
[1761792955535,8.51316964,198.05,198.04,9.76366796]
[1761792956032,20.592,198.05,198.04,9.76366796]
[1761792956407,3.06393965,198.05,198.04,9.76366796]
[1761792958222,3.06393965,198.05,198.04,10.42366796]
[1761792958409,3.06393965,198.05,198.04,9.76366796]
[1761792959102,20.592,198.08,198.04,10.42366796]
[1761792959407,23.65593965,198.06,198.04,9.76366796]
[1761792959619,23.65593965,198.06,198.04,10.42366796]
[1761792959815,23.65593965,198.06,198.04,9.76366796]
[1761792960034,3.06393965,198.06,198.04,9.76366796]
[1761792960323,20.592,198.07,198.04,9.76366796]
[1761792960529,23.65593965,198.06,198.04,9.76366796]
[1761792960828,3.06393965,198.05,198.04,9.76366796]
[1761792961128,20.592,198.06,198.04,9.76366796]
[1761792961129,3.06393965,198.06,198.04,9.76366796]
[1761792961328,3.06393965,198.05,198.04,9.76366796]
[1761792962619,3.06393965,198.05,198.04,10.42366796]
[1761792962812,3.06393965,198.06,198.04,10.42366796]
[1761792963623,20.592,198.09,198.05,0.66]
[1761792963819,3.06393965,198.08,198.05,0.66]
[1761792964324,3.06393965,198.07,198.05,0.66]
[1761792964634,3.06393965,198.06,198.04,9.76366796]
[1761792965029,3.06393965,198.05,198.04,9.76366796]
[1761792967132,3.06393965,198.05,198.04,10.42366796]
[1761792968143,3.06393965,198.05,198.04,9.76366796]
[1761792969124,3.46393965,198.05,198.04,9.76366796]
[1761792969412,5.0487598,198.07,198.04,9.76366796]
[1761792969610,3.06393965,198.05,198.04,9.76366796]
[1761792970240,3.06393965,198.07,198.04,10.42366796]
[1761792970533,3.06393965,198.07,198.05,0.66]
[1761792971646,23.65593965,198.07,198.05,0.66]
[1761792972248,3.06393965,198.06,198.05,0.66]
[1761792973524,20.592,198.07,198.05,0.66]
[1761792973721,108.44762457,198.12,198.05,0.66]
[1761792974041,20.592,198.08,198.05,0.66]
[1761792974520,3.06393965,198.09,198.05,0.66]
[1761792976534,3.06393965,198.1,198.05,0.66]
[1761792977346,3.06393965,198.09,198.05,0.66]
[1761792978126,3.06393965,198.08,198.05,0.66]
[1761792978824,103.4,198.11,198.05,0.66]
[1761792979026,3.06393965,198.1,198.06,3.30898276]
[1761792979342,106.46393965,198.11,198.07,3.30882316]
[1761792979545,106.46393965,198.11,198.06,0.66]
[1761792979742,103.4,198.11,198.07,3.3114504]
[1761792980053,103.4,198.11,198.08,3.31125571]
[1761792980247,5.04646463,198.16,198.09,0.66]
[1761792980248,123.992,198.16,198.09,0.66]
[1761792980445,3.06393965,198.15,198.1,3.31321663]
[1761792980632,3.06393965,198.15,198.11,3.31321663]
[1761792980830,3.06393965,198.15,198.1,0.66]
[1761792981029,3.06393965,198.18,198.12,3.06393965]
[1761792981250,3.06393965,198.19,198.13,6.37468123]
[1761792981437,3.06393965,198.19,198.14,3.31074158]
[1761792981641,3.06393965,198.19,198.15,3.31074158]
[1761792981844,3.06393965,198.19,198.16,0.66]
[1761792982545,3.06393965,198.2,198.16,0.66]
[1761792983247,103.4,198.23,198.17,3.31406066]
[1761792983248,3.06393965,198.21,198.17,3.31406066]
[1761792983449,3.06393965,198.21,198.18,0.66]
[1761792983642,20.592,198.23,198.18,0.66]
[1761792983845,0.4,198.25,198.18,0.66]
[1761792984054,0.1,198.28,198.19,11.42180088]
[1761792984055,0.4,198.27,198.19,11.42180088]
[1761792984233,3.06393965,198.25,198.2,3.97236478]
[1761792984432,3.06393965,198.24,198.2,0.66]
[1761792984756,3.06393965,198.24,198.21,0.66]
[1761792985140,3.06393965,198.25,198.21,0.66]
[1761792985344,0.4,198.27,198.21,0.66]
[1761792985345,3.06393965,198.24,198.21,0.66]
[1761792985649,3.06393965,198.24,198.22,3.31057949]
[1761792985851,3.06393965,198.24,198.21,0.66]
[1761792986156,3.06393965,198.24,198.22,3.31085934]
[1761792986331,3.06393965,198.24,198.21,0.66]
[1761792987645,3.06393965,198.25,198.22,3.30811481]
[1761792987841,3.06393965,198.25,198.21,0.66]
[1761792988057,3.06393965,198.25,198.22,3.3081145]
[1761792988273,3.06393965,198.25,198.19,8.10959762]
[1761792988459,3.06393965,198.25,198.22,0.66]
[1761792988842,103.4,198.27,198.22,0.66]
[1761792988843,106.46393965,198.27,198.22,0.66]
[1761792989241,3.06393965,198.26,198.22,0.66]
[1761792990745,106.46393965,198.27,198.22,0.66]
[1761792991636,103.4,198.27,198.22,5.70476049]
[1761792991856,103.4,198.27,198.22,8.76870014]
[1761792992162,103.4,198.27,198.23,0.66]
[1761792993264,3.16393965,198.28,198.23,0.66]
[1761792995557,0.1,198.28,198.23,0.66]
[1761792995763,3.16393965,198.28,198.23,0.66]
[1761792996452,3.06393965,198.27,198.23,0.66]
[1761792999656,0.1,198.28,198.23,0.66]
[1761792999856,3.06393965,198.27,198.23,0.66]
[1761793001873,3.06393965,198.24,198.21,0.66]
[1761793002058,3.06393965,198.24,198.22,0.66]
[1761793002258,3.06393965,198.25,198.22,0.66]
[1761793004657,103.5,198.28,198.22,0.66]
[1761793004979,3.06393965,198.26,198.22,0.66]
[1761793006352,3.06393965,198.25,198.22,0.66]
[1761793006954,3.06393965,198.27,198.22,5.70485527]
[1761793007153,103.5,198.28,198.22,8.76879492]
[1761793007154,106.56393965,198.28,198.22,8.76879492]
[1761793007355,106.56393965,198.28,198.23,0.66]
[1761793008462,106.56393965,198.28,198.25,3.06393965]
[1761793008463,0.1,198.28,198.25,3.06393965]
[1761793008791,0.1,198.28,198.26,0.66]
[1761793008993,0.1,198.28,198.26,3.72393965]
[1761793009360,0.1,198.28,198.27,0.66]
[1761793010061,0.1,198.28,198.27,5.70362737]
[1761793010856,0.1,198.28,198.27,8.76756702]
[1761793011274,0.1,198.28,198.27,10.94365856]
[1761793012396,0.1,198.28,198.27,11.08582013]
[1761793016481,0.1,198.28,198.27,9.12972303]
[1761793016683,0.1,198.28,198.27,11.08582013]
[1761793017090,0.1,198.28,198.27,10.94365856]
[1761793024278,0.1,198.28,198.27,15.21068376]
[1761793024469,0.1,198.28,198.27,11.08582013]
[1761793025275,0.541,198.29,198.27,9.12972303]
[1761793025573,0.541,198.29,198.28,5.94003119]
[1761793025778,0.541,198.29,198.28,6.08219276]
[1761793027199,0.541,198.29,198.28,11.12556576]
[1761793029084,0.541,198.29,198.28,16.65043533]
[1761793029504,0.541,198.29,198.28,14.69433823]
[1761793029704,0.541,198.29,198.28,16.65043533]
[1761793030204,0.541,198.29,198.28,14.69433823]
[1761793030384,0.541,198.29,198.28,11.12556576]
[1761793032698,0.541,198.29,198.28,3.98393409]
[1761793032886,0.541,198.29,198.28,3.28393409]
[1761793033089,0.541,198.29,198.28,8.10008271]
[1761793033307,0.541,198.29,198.28,8.99730709]
[1761793033717,0.541,198.29,198.28,13.14345571]
[1761793033917,0.541,198.29,198.28,15.24171438]
[1761793036800,0.541,198.29,198.28,11.09556576]
[1761793037008,0.541,198.29,198.28,15.24061488]
[1761793037511,0.541,198.29,198.28,13.28451778]
[1761793037719,0.541,198.29,198.28,3.42609566]
[1761793037886,0.541,198.29,198.28,8.46946866]
[1761793038599,0.541,198.29,198.28,9.13946866]
[1761793039326,0.541,198.29,198.28,11.09556576]
[1761793041327,0.541,198.29,198.28,15.24061488]
[1761793042931,0.541,198.29,198.28,10.05508031]
[1761793044224,0.541,198.29,198.28,5.24003119]
[1761793044422,0.541,198.29,198.28,3.28393409]
[1761793044792,0.541,198.29,198.28,3.94393409]
[1761793044992,0.541,198.29,198.28,8.08898321]
[1761793045936,0.541,198.29,198.28,10.04508031]
[1761793047017,0.541,198.29,198.28,15.08845331]
[1761793048522,0.541,198.29,198.28,10.94340419]
[1761793050943,0.541,198.29,198.28,5.90003119]
[1761793052311,0.541,198.29,198.28,10.94340419]
[1761793053421,68.34567572,198.33,198.29,1.9560971]
[1761793053627,68.34567572,198.33,198.3,7.44844255]
[1761793053826,68.34567572,198.33,198.31,3.28393409]
[1761793054045,68.34567572,198.33,198.32,3.28393409]
[1761793059128,68.34567572,198.33,198.32,7.44844255]
[1761793060844,68.74567572,198.33,198.32,7.44844255]
[1761793061051,68.34567572,198.33,198.32,3.28393409]
[1761793061548,68.34567572,198.33,198.32,7.44844255]
[1761793063050,68.34567572,198.33,198.32,8.10844255]
[1761793063226,68.34567572,198.33,198.32,13.15079833]
[1761793063545,59.82180306,198.33,198.32,8.98628987]
[1761793063725,59.82180306,198.33,198.32,13.14782641]
[1761793064451,59.82180306,198.33,198.32,3.28393409]
[1761793064636,59.82180306,198.33,198.32,0.66]
[1761793064955,59.82180306,198.33,198.32,9.03151992]
[1761793065126,59.82180306,198.33,198.32,10.98761702]
[1761793065527,59.82180306,198.33,198.32,15.14731998]
[1761793065723,59.82180306,198.33,198.32,13.19122288]
[1761793066352,59.82180306,198.33,198.32,13.33338445]
[1761793068241,59.82180306,198.33,198.32,15.28948155]
[1761793068924,59.82180306,198.33,198.32,13.33338445]
[1761793069130,59.82180306,198.33,198.32,15.28948155]
[1761793071338,59.82180306,198.33,198.32,16.38889989]
[1761793072071,59.82180306,198.33,198.32,7.4888671]
[1761793072358,59.82180306,198.33,198.32,3.32916414]
[1761793072930,59.32180306,198.33,198.32,3.32916414]
[1761793073132,59.72180306,198.33,198.32,3.32916414]
[1761793074260,62.7773185,198.33,198.32,3.32916414]
[1761793074765,67.81942004,198.33,198.32,3.32916414]
[1761793075137,67.81942004,198.33,198.26,4.15970296]
[1761793075336,3.05551544,198.29,198.27,7.48820823]
[1761793075563,0.4,198.32,198.28,3.32850527]
[1761793075740,3.45551544,198.31,198.29,3.32850527]
[1761793076053,3.05551544,198.31,198.3,3.32850527]
[1761793076554,3.45551544,198.31,198.3,3.32850527]
[1761793077443,8.49812549,198.31,198.3,3.32850527]
[1761793078236,8.49812549,198.31,198.24,4.15970296]
[1761793078461,5.04311866,198.29,198.25,3.32956924]
[1761793078628,20.592,198.25,198.19,4.15970296]
[1761793078836,9.78882769,198.24,198.2,3.33287902]
[1761793079032,20.592,198.21,198.14,4.15970296]
[1761793079335,20.592,198.21,198.12,5.52486957]
[1761793079336,20.592,198.21,198.15,7.4948113]
[1761793079547,0.4,198.24,198.16,7.4948113]
[1761793079751,0.4,198.24,198.18,4.15970296]
[1761793080038,3.05551544,198.23,198.19,3.33510834]
[1761793080233,3.05551544,198.22,198.2,3.33510834]
[1761793080470,3.05551544,198.22,198.21,3.33510834]
[1761793080670,3.45551544,198.25,198.21,3.33510834]
[1761793080969,23.64751544,198.26,198.22,4.04510834]
[1761793081142,3.45551544,198.28,198.23,3.33510834]
[1761793081342,3.05551544,198.26,198.24,3.33510834]
[1761793081558,0.4,198.27,198.25,3.33510834]
[1761793081752,5.44313946,198.29,198.2,5.75539341]
[1761793081951,5.44313946,198.29,198.21,3.32386714]
[1761793082139,0.4,198.28,198.22,3.32386714]
[1761793082338,26.035478,198.28,198.23,3.32386714]
[1761793082559,26.035478,198.28,198.17,4.15970296]
[1761793082762,3.05551544,198.23,198.18,4.03402605]
[1761793082944,3.05551544,198.23,198.19,3.32402605]
[1761793083139,3.05551544,198.23,198.2,3.32402605]
[1761793083355,0.4,198.25,198.21,3.32402605]
[1761793083671,25.635478,198.28,198.22,3.32402605]
[1761793083672,0.4,198.28,198.22,3.32402605]
[1761793083869,3.05551544,198.27,198.23,3.32402605]
[1761793084081,3.05551544,198.28,198.24,3.32402605]
[1761793084258,3.05551544,198.28,198.25,3.32402605]
[1761793084453,3.45551544,198.28,198.26,3.32402605]
[1761793084781,3.05551544,198.28,198.23,5.75462779]
[1761793084976,3.05551544,198.28,198.24,3.31704519]
[1761793085184,3.05551544,198.28,198.25,3.31704519]
[1761793085479,3.05551544,198.28,198.26,3.31704519]
[1761793085650,3.05551544,198.28,198.24,0.71]
[1761793085850,3.05551544,198.28,198.25,3.3167264]
[1761793086066,3.05551544,198.28,198.26,3.3167264]
[1761793086277,3.05551544,198.28,198.24,0.71]
[1761793086583,3.05551544,198.29,198.25,3.31656395]
[1761793086762,3.05551544,198.29,198.24,5.75435987]
[1761793086963,3.05551544,198.29,198.25,4.02618437]
[1761793087174,3.05551544,198.29,198.25,0.71]
[1761793087376,3.45551544,198.28,198.21,5.04515412]
[1761793087591,20.592,198.24,198.22,3.31575243]
[1761793087756,113.58882769,198.27,198.15,4.15970296]
[1761793088086,0.4,198.26,198.2,20.592]
[1761793088262,0.4,198.26,198.21,23.91008753]
[1761793088463,0.4,198.26,198.22,3.31808753]
[1761793088663,3.05551544,198.26,198.23,3.31808753]
[1761793088957,3.05551544,198.26,198.24,3.31808753]
[1761793089162,3.05551544,198.26,198.21,26.34706451]
[1761793089468,3.45551544,198.26,198.22,3.31380596]
[1761793089667,3.45551544,198.26,198.23,3.31380596]
[1761793089868,3.45551544,198.26,198.24,3.31380596]
[1761793090066,3.05551544,198.25,198.19,4.15970296]
[1761793090271,3.05551544,198.25,198.2,3.31367368]
[1761793090272,0.4,198.25,198.2,3.31367368]
[1761793090465,0.4,198.25,198.14,6.23486957]
[1761793090466,0.4,198.24,198.14,0.71]
[1761793090663,0.4,198.24,198.15,3.31590127]
[1761793090887,20.592,198.22,198.16,3.31590127]
[1761793091186,20.592,198.22,198.17,3.31590127]
[1761793091380,0.4,198.21,198.18,3.31590127]
[1761793091592,3.05551544,198.19,198.13,9.20687085]
[1761793091796,0.4,198.21,198.14,3.31420718]
[1761793091797,3.05551544,198.17,198.14,3.31420718]
[1761793091970,3.05551544,198.18,198.15,3.31420718]
[1761793092283,3.05551544,198.18,198.16,3.31420718]
[1761793092492,3.05551544,198.18,198.17,3.31420718]
[1761793092700,3.05551544,198.19,198.17,3.31420718]
[1761793092867,3.05551544,198.2,198.18,3.31420718]
[1761793093195,3.05551544,198.2,198.15,0.7]
[1761793093369,3.05551544,198.2,198.16,3.3117727]
[1761793093691,3.05551544,198.21,198.17,3.3117727]
[1761793093862,3.05551544,198.21,198.18,3.3117727]
[1761793094063,3.05551544,198.19,198.15,5.74649351]
[1761793094285,3.05551544,198.19,198.16,3.31076916]
[1761793094474,20.592,198.21,198.16,3.31076916]
[1761793094475,3.05551544,198.2,198.17,3.31076916]
[1761793094987,3.05551544,198.22,198.18,0.7]
[1761793095377,3.05551544,198.22,198.19,3.30965422]
[1761793095690,3.05551544,198.22,198.17,5.04614394]
[1761793095875,3.05551544,198.22,198.18,3.30943152]
[1761793096067,3.05551544,198.22,198.19,3.30943152]
[1761793096269,3.05551544,198.21,198.17,5.74614394]
[1761793096469,3.05551544,198.21,198.18,3.30898806]
[1761793096672,3.05551544,198.21,198.19,3.30898806]
[1761793096873,3.05551544,198.21,198.17,0.7]
[1761793097173,3.05551544,198.21,198.18,3.30965567]
[1761793097488,3.05551544,198.21,198.15,3.05551544]
[1761793097489,0.4,198.2,198.15,3.05551544]
[1761793097707,3.05551544,198.21,198.16,3.30936923]
[1761793097891,3.05551544,198.21,198.17,3.30936923]
[1761793098063,3.05551544,198.21,198.18,3.30936923]
[1761793098262,3.05551544,198.21,198.15,3.75551544]
[1761793098491,3.05551544,198.21,198.16,4.0088658]
[1761793098692,123.992,198.26,198.17,6.36438124]
[1761793098886,3.05551544,198.25,198.19,3.05551544]
[1761793099088,3.05551544,198.24,198.18,3.75551544]
[1761793099273,3.05551544,198.24,198.19,3.30826823]
[1761793099476,3.05551544,198.24,198.18,3.75551544]
[1761793099675,3.05551544,198.24,198.19,4.00811048]
[1761793099893,20.592,198.26,198.2,6.36306061]
[1761793100101,3.05551544,198.28,198.22,3.05551544]
[1761793100684,3.05551544,198.27,198.17,32.44696997]
[1761793101000,3.05551544,198.25,198.2,0.7]
[1761793101175,3.05551544,198.25,198.21,3.30637915]
[1761793101599,3.05551544,198.25,198.21,4.00637915]
[1761793101778,3.05551544,198.25,198.22,3.30637915]
[1761793102799,3.05551544,198.25,198.21,0.7]
[1761793103302,20.992,198.27,198.21,0.7]
[1761793103303,3.05551544,198.24,198.21,0.7]
[1761793103480,3.05551544,198.25,198.22,3.30733049]
[1761793103679,3.05551544,198.26,198.21,0.7]
[1761793103885,3.05551544,198.26,198.22,3.30732768]
[1761793104090,3.05551544,198.26,198.21,0.7]
[1761793104290,3.05551544,198.26,198.22,3.30758147]
[1761793104483,3.05551544,198.26,198.21,0.7]
[1761793104697,3.05551544,198.26,198.22,3.3076186]
[1761793105000,3.05551544,198.25,198.19,0.68]
[1761793105205,3.05551544,198.21,198.2,3.30844823]
[1761793105377,123.992,198.27,198.2,3.30844823]
[1761793105574,123.992,198.27,198.21,3.98976061]
[1761793105575,3.05551544,198.26,198.21,3.98976061]
[1761793105783,3.05551544,198.26,198.21,0.68]
[1761793105993,123.992,198.27,198.22,0.68]
[1761793106298,3.05551544,198.26,198.19,3.05551544]
[1761793106472,3.05551544,198.26,198.2,7.04449675]
[1761793106674,3.05551544,198.26,198.21,3.30898131]
[1761793106873,3.05551544,198.26,198.22,3.30898131]
[1761793107074,3.05551544,198.26,198.21,0.68]
[1761793107284,3.05551544,198.26,198.22,3.30850027]
[1761793107490,3.05551544,198.26,198.21,0.68]
[1761793107673,3.05551544,198.26,198.22,3.3089127]
[1761793107877,3.05551544,198.26,198.21,0.68]
[1761793108084,3.05551544,198.26,198.22,3.3086316]
[1761793108301,3.05551544,198.26,198.21,0.68]
[1761793108496,3.05551544,198.26,198.22,3.30923102]
[1761793109297,127.04751544,198.27,198.22,3.98923102]
[1761793109511,127.04751544,198.27,198.23,3.30923102]
[1761793109885,123.992,198.27,198.23,3.98923102]
[1761793110195,127.44751544,198.27,198.21,0.68]
[1761793110391,127.44751544,198.27,198.22,3.31034444]
[1761793110580,127.44751544,198.27,198.23,3.31034444]
[1761793110907,127.44751544,198.27,198.21,0.68]
[1761793111082,124.392,198.27,198.22,3.31114269]
[1761793111277,3.05551544,198.26,198.23,3.31114269]
[1761793111485,3.05551544,198.26,198.21,0.68]
[1761793111699,3.05551544,198.26,198.22,3.31233676]
[1761793111903,123.992,198.27,198.23,3.31233676]
[1761793112084,127.04751544,198.27,198.21,5.72512725]
[1761793112284,127.04751544,198.27,198.22,3.31340598]
[1761793112587,127.04751544,198.27,198.23,3.31340598]
[1761793112792,127.04751544,198.27,198.22,0.68]
[1761793112996,127.04751544,198.27,198.23,3.31385404]
[1761793113189,127.44751544,198.27,198.22,0.68]
[1761793113388,127.44751544,198.27,198.23,3.31245134]
[1761793113603,127.44751544,198.27,198.24,3.31245134]
[1761793113801,127.04751544,198.27,198.22,0.68]
[1761793114003,127.04751544,198.27,198.23,3.31426489]
[1761793114204,127.44751544,198.27,198.24,3.31426489]
[1761793114509,127.44751544,198.27,198.22,0.68]
[1761793114712,127.44751544,198.27,198.23,3.3155907]
[1761793114893,127.04751544,198.27,198.24,3.3155907]
[1761793115099,127.04751544,198.27,198.22,0.68]
[1761793115100,123.992,198.27,198.22,5.72484462]
[1761793115295,3.05551544,198.3,198.24,3.05551544]
[1761793115613,3.05551544,198.3,198.23,3.31582059]
[1761793115614,23.64751544,198.3,198.25,3.31582059]
[1761793115800,3.05551544,198.29,198.26,3.31582059]
[1761793116000,3.05551544,198.29,198.23,0.68]